{"text_format":"3","workbook":"xlsx","n_sheets":3,"sheets":["附件2  表1","附件2 表1-1","附件3"],"not_rendered":{"defined_names":3},"read":"whole","date_system":"1900"}

{"sheet":"附件2  表1","index":0,"n_rows":45,"n_cols":9,"rows_kept":45,"merged":[[1,0,1,8],[2,0,2,1],[2,7,2,8],[3,0,4,0],[3,1,4,1],[3,2,4,2],[3,3,4,3],[3,4,3,5],[3,6,3,7],[3,8,4,8],[5,0,5,1],[6,0,8,0],[9,0,13,0],[14,0,16,0],[17,0,25,0],[26,0,28,0],[29,0,33,0],[34,0,37,0],[38,0,40,0],[41,0,42,0],[44,0,44,8]]}
["附件2 表1"]
["XX部门问题查处和整改汇总表（加强资产管理领域）"]
["报送单位：（盖章）",{"$nulls":4},"经办：",null,"联系电话（手机）："]
["问题类型","具体问题","问题个数\n（个）","涉及金额\n（万元）","其中：已整改",null,"正在整改",null,"备注"]
[{"$nulls":4},"问题个数\n（个）","涉及金额\n（万元）","问题个数\n（个）","涉及金额\n（万元）"]
["总计",null,{"$f":"C9+C17+C29+C34+C38+C41+C43","v":{"v":0,"d":"0.00"}},{"v":0,"d":"0.00"},{"v":0,"d":"0.00"},{"v":0,"d":"0.00"},{"v":0,"d":"0.00"},{"v":0,"d":"0.00"}]
["一、闲置或对外出租与租入并存","（一）资产闲置仍租入同类资产"]
[null,"（二）资产出租仍租入同类资产"]
[null,"小计",{"$f":"SUM(C7:C8)","v":{"v":0,"d":"0.00"}},{"v":0,"d":"0.00"},{"v":0,"d":"0.00"},{"v":0,"d":"0.00"},{"v":0,"d":"0.00"},{"v":0,"d":"0.00"}]
["二、违规购置、处置资产","（一）未按规定编报新增资产配置预算、履行新增资产配置程序或超出批复内容配置资产"]
[null,"（二）申报新增资产配置提供虚假资产存量信息、使用情况等材料"]
[null,"（三）未经批准超标准配置资产"]
[null,"（四）资产闲置仍新购同类资产"]
[null,"（五）超过规定权限处置国有资产"]
[null,"（六）采用弄虚作假等方式低价处置国有资产"]
[null,"（七）未经批准非公开处置资产，暗箱操作等"]
[null,"小计",{"$f":"SUM(C10:C16)","v":{"v":0,"d":"0.00"}},{"v":0,"d":"0.00"},{"v":0,"d":"0.00"},{"v":0,"d":"0.00"},{"v":0,"d":"0.00"},{"v":0,"d":"0.00"}]
["三、未履行审批程序出租资产、对外投资及处置资产","（一）出租行为未按规定履行审批程序"]
[null,"（二）对外投资未按规定履行审批程序"]
[null,"（三）资产处置未按规定履行审批程序"]
[null,"（四）资产出租未按规定公开招租"]
[null,"（五）出租价格背离市场公允价格"]
[null,"（六）超过租期后未经批准继续出租"]
[null,"（七）未经批准利用财政资金对外投资"]
[null,"（八）违规投资期货、股票，购买企业债券、各类投资基金和其他形式的金融衍生品等"]
[null,"（九）在国外贷款债务尚未清偿前利用该贷款形成的资产对外投资"]
[null,"（十）利用非货币性资产对外投资，未按规定履行资产评估程序"]
[null,"（十一）资产处置未按规定进行资产评估"]
[null,"小计",{"$f":"SUM(C18:C28)","v":{"v":0,"d":"0.00"}},{"v":0,"d":"0.00"},{"v":0,"d":"0.00"},{"v":0,"d":"0.00"},{"v":0,"d":"0.00"},{"v":0,"d":"0.00"}]
["四、资产处置收入未按规定上缴或上缴不及时","（一）资产收入未按规定及时上缴"]
[null,"（二）多收、少收、不收资产收入"]
[null,"（三）截留、占用、挪用、坐支资产收入"]
[null,"（四）侵占、私分、隐匿资产收入"]
[null,"小计",{"$f":"SUM(C30:C33)","v":{"v":0,"d":"0.00"}},{"v":0,"d":"0.00"},{"v":0,"d":"0.00"},{"v":0,"d":"0.00"},{"v":0,"d":"0.00"},{"v":0,"d":"0.00"}]
["五、资产账实不符、未按规定登记入账","（一）存量资产账实不符"]
[null,"（二）新增资产未按规定登记入账"]
[null,"（三）公共基础设施等行政事业性国有资产未按规定登记入账或登记在固定资产等其他科目"]
[null,"小计",{"$f":"SUM(C35:C37)","v":{"v":0,"d":"0.00"}},{"v":0,"d":"0.00"},{"v":0,"d":"0.00"},{"v":0,"d":"0.00"},{"v":0,"d":"0.00"},{"v":0,"d":"0.00"}]
["六、已使用在建工程未及时转为固定资产或公共基础设施等","（一）已使用在建工程未及时转为固定资产"]
[null,"（二）已使用在建工程未及时转为公共基础设施等"]
[null,"小计",{"$f":"SUM(C39:C40)","v":{"v":0,"d":"0.00"}},{"v":0,"d":"0.00"},{"v":0,"d":"0.00"},{"v":0,"d":"0.00"},{"v":0,"d":"0.00"},{"v":0,"d":"0.00"}]
["七、其他问题","应报未报行政事业性国有资产年报、月报"]
[null,"小计",{"$f":"SUM(C42:C42)","v":{"v":0,"d":"0.00"}},{"v":0,"d":"0.00"},{"v":0,"d":"0.00"},{"v":0,"d":"0.00"},{"v":0,"d":"0.00"},{"v":0,"d":"0.00"}]
["注：汇总数据必须明细表中数据汇总数保持一致。"]
["表格中“涉及金额”填报口径:\n1.有闲置/出租资产仍租入同类资产,填写租入同类资产金额;\n2.出租价格背离市场公允价格,填写市场价格与出租价格(合同金额)的差值;\n3.涉及资产收入的问题填写资产收入价值;\n4.已使用在建工程未及时转为固定资产，填写已使用在建工程的价值；\n5.应报未报行政事业性国有资产报告，填写未报单位的资产账面原值总额\n6.其他问题统一填写资产账面原值。"]

{"sheet":"附件2 表1-1","index":1,"n_rows":73,"n_cols":11,"rows_kept":73,"merged":[[1,0,1,10],[2,9,2,10],[3,0,4,0],[3,1,4,1],[3,2,4,2],[3,3,4,3],[3,4,4,4],[3,5,4,5],[3,6,3,7],[3,8,3,9],[3,10,4,10],[72,0,72,10]]}
["附件2 表1-1"]
["XX部门问题查处和整改明细表（加强资产管理领域）"]
[{"$nulls":9},"金额单位：万元"]
["项目 ","二级单位","年份","查处问题内容","涉及金额（万元）","整改措施","已完成整改",null,"正在整改",null,"备注"]
[{"$nulls":6},"已整改金额\n（万元）","整改完成\n时间","正在整改金\n额（万元）","预计整改\n完成时间"]
["一、闲置或对外出租与租入并存"]
["（一）资产闲置仍租入同类资产"]
["……"]
["（二）资产出租仍租入同类资产"]
["……"]
["二、违规购置、处置资产"]
["（一）未按规定编报新增资产配置预算、履行新增资产配置程序或超出批复内容配置资产"]
["……"]
["（二）申报新增资产配置提供虚假资产存量信息、使用情况等材料"]
["……"]
["（三）未经批准超标准配置资产"]
["……"]
["（四）资产闲置仍新购同类资产"]
["……"]
["（五）超过规定权限处置国有资产"]
["……"]
["（六）采用弄虚作假等方式低价处置国有资产"]
["……"]
["（七）未经批准非公开处置资产，暗箱操作等"]
["……"]
["三、未履行审批程序出租资产、对外投资及处置资产"]
["（一）出租行为未按规定履行审批程序"]
["……"]
["（二）对外投资未按规定履行审批程序"]
["……"]
["（三）资产处置未按规定履行审批程序"]
["……"]
["（四）资产出租未按规定公开招租"]
["……"]
["（五）出租价格背离市场公允价格"]
["……"]
["（六）超过租期后未经批准继续出租"]
["……"]
["（七）未经批准利用财政资金对外投资"]
["……"]
["（八）违规投资期货、股票，购买企业债券、各类投资基金和其他形式的金融衍生品等"]
["……"]
["（九）在国外贷款债务尚未清偿前利用该贷款形成的资产对外投资"]
["……"]
["（十）利用非货币性资产对外投资，未按规定履行资产评估程序"]
["……"]
["（十一）资产处置未按规定进行资产评估"]
["……"]
["四、资产处置收入未按规定上缴或上缴不及时"]
["（一）资产收入未按规定及时上缴"]
["……"]
["（二）多收、少收、不收资产收入"]
["……"]
["（三）截留、占用、挪用、坐支资产收入"]
["……"]
["（四）侵占、私分、隐匿资产收入"]
["……"]
["五、资产账实不符、未按规定登记入账"]
["（一）存量资产账实不符"]
["……"]
["（二）新增资产未按规定登记入账"]
["……"]
["（三）公共基础设施等行政事业性国有资产未按规定登记入账或登记在固定资产等其他科目"]
["……"]
["六、已使用在建工程未及时转为固定资产或公共基础设施等"]
["（一）已使用在建工程未及时转为固定资产"]
["……"]
["（二）已使用在建工程未及时转为公共基础设施等"]
["……"]
["七、其他问题"]
["应报未报行政事业性国有资产年报、月报"]
["……"]
["注：按每个问题的查处整改明细情况进行填报，每行填列一条具体问题，不得合并填报。"]

{"sheet":"附件3","index":2,"n_rows":30,"n_cols":2,"rows_kept":30,"merged":[[1,0,1,1]]}
["附件3"]
["政策依据"]
[]
["序号","文件名称"]
[1,"《行政事业性国有资产管理条例》（国务院令第738号）"]
[2,"《行政单位国有资产管理暂行办法》（财政部令第35号）、《福建省行政单位国有资产管理暂行办法》（闽财资〔2010〕22号）"]
[3,"《事业单位国有资产管理暂行办法》（财政部令第100号）、《福建省事业单位国有资产管理暂行办法》（闽财资〔2010〕21号）"]
[4,"《财政部关于进一步规范和加强行政事业单位国有资产管理的指导意见》（财资〔2015〕90号）、《关于进一步规范和加强行政事业单位国有资产管理的通知》（闽财资〔2017〕4号）"]
[5,"《财政部关于进一步加强和改进行政事业单位国有资产管理工作的通知》（财资〔2018〕108号）、《福建省财政厅转发财政部关于进一步加强和改进行政事业单位国有资产管理工作的通知》（闽财资便函〔2019〕1号）"]
[6,"《党政机关办公用房管理办法》、《福建省党政机关办公用房管理办法》"]
[7,"《党政机关公务用车管理办法》、《福建省党政机关公务用车管理办法》"]
[8,"《党政机关办公用房建设标准》（发改投资〔2014〕2674号）"]
[9,"《财政部关于印发〈行政事业单位资产清查核实管理办法〉的通知》（财资〔2016〕1号）、《福建省财政厅转发财政部关于行政事业单位资产清查核实管理办法的通知》（闽财资〔2016〕3号）"]
[10,"《财政部关于印发〈政府非税收入管理办法〉的通知》（财税〔2016〕33号）、《福建省财政厅关于印发<福建省省级行政事业单位国有资产收入管理办法>的通知》（闽财资〔2018〕12号）"]
[11,"《公共租赁住房资产管理暂行办法》（财资〔2018〕106号）"]
[12,"《财政部关于进一步加大授权力度  促进科技成果转化的通知》（财资〔2019〕57号）、《福建省财政厅 福建省机关事务管理局关于进一步加强科技成果转化有关国有资产管理的通知》（闽财资〔2019〕9号）"]
[13,"《财政部关于做好新冠肺炎疫情防控资产保障工作的通知》（财资〔2020〕4号）、《福建省财政厅 福建省机关事务管理局关于新冠肺炎疫情防控期间减免企业房租和做好防控资产保障工作的通知》（闽财资函〔2020〕1号）"]
[14,"《财政部关于加强行政事业单位固定资产管理的通知》（财资〔2020〕97号）"]
[15,"《公路资产管理暂行办法》（财资〔2021〕83号）"]
[16,"《国有文物资源资产管理暂行办法》（财资〔2021〕84号）"]
[17,"《财政部关于印发〈党政机关执法执勤用车管理办法〉的通知》（财资〔2021〕137号）"]
[18,"《福建省机关事务管理局关于印发<福建省直行政事业单位国有资产管理办法>的通知》（闽机管综〔2017〕71号）"]
[19,"《福建省机关事务管理局关于印发<福建省直行政事业单位固定资产日常管理办法>的通知》（闽机管综〔2017〕73号）"]
[20,"《福建省机关事务管理局关于印发<福建省直行政事业单位国有资产出租出借管理实施办法>的通知》（闽机管综〔2020〕76号）"]
[21,"《福建省机关事务管理局 福建省财政厅关于印发<福建省直事业单位对外投资管理暂行办法>的通知》（闽机管综〔2020〕103号）"]
[22,"《福建省机关事务管理局关于印发<福建省直行政事业单位国有资产处置管理实施办法>的通知》（闽机管综〔2020〕75号）"]
[23,"《福建省机关事务管理局 福建省财政厅关于福建省级以下法院检察院国有资产实行委托管理的通知》（闽机管综〔2020〕6号）"]
[24,"市级出台的资产管理规定，如：泉财行〔2018〕960号、泉财行〔2018〕961号、泉财行〔2018〕315号等文件"]
[25,"各县（市、区）出台的资产管理文件"]
[26,"其他资产管理文件"]